bitfinex-derivatives/quotes_SOLF0:USTF0_20250529
["timestamp","ask_amount","ask_price","bid_price","bid_amount"]
[1748522230305,0.04382051,172.64,172.61,0.04388786]
[1748522231813,5.83422051,172.64,172.61,5.83508786]
[1748522233319,0.04382051,172.64,172.61,0.04388786]
[1748522234021,5.791,172.62,172.61,0.04388786]
[1748522237415,5.792,172.59,172.56,2.0652]
[1748522238423,5.7923,172.58,172.56,2.10403409]
[1748522238816,0.04438901,172.59,172.56,0.03883409]
[1748522239222,5.7926,172.57,172.56,0.03883409]
[1748522243826,0.04438901,172.59,172.56,0.03883409]
[1748522245726,5.7924,172.58,172.56,0.03883409]
[1748522246030,0.04438901,172.59,172.56,0.03883409]
[1748522246728,0.04438901,172.59,172.57,5.7925]
[1748522246930,0.04438901,172.59,172.56,0.03883409]
[1748522248737,5.7926,172.57,172.56,0.03883409]
[1748522252038,0.04438901,172.59,172.49,32.3744]
[1748522252231,30.3,172.6,172.49,32.3744]
[1748522252430,5.7939,172.54,172.5,5.7947]
[1748522253032,5.83110383,172.54,172.5,5.83365126]
[1748522253437,5.794,172.53,172.5,5.83365126]
[1748522253639,0.03720383,172.54,172.5,0.03895126]
[1748522254128,5.7943,172.53,172.5,0.03895126]
[1748522254536,5.7943,172.53,172.5,5.83395126]
[1748522254739,0.03720383,172.54,172.5,0.03895126]
[1748522255642,0.03720383,172.54,172.52,5.7943]
[1748522255937,0.03720383,172.54,172.5,0.03895126]
[1748522256739,0.03720383,172.54,172.53,5.794]
[1748522273849,0.03720383,172.54,172.52,5.7942]
[1748522274655,0.03720383,172.54,172.53,5.794]
[1748522274855,5.83100383,172.54,172.5,30.33895126]
[1748522275145,5.83100383,172.54,172.5,0.03895126]
[1748522275550,0.03720383,172.54,172.5,0.03895126]
[1748522276248,0.03720383,172.54,172.5,5.83375126]
[1748522276454,0.03720383,172.54,172.5,0.03895126]
[1748522277151,5.7942,172.53,172.5,0.03895126]
[1748522278753,5.7942,172.53,172.5,5.83375126]
[1748522279756,5.7944,172.52,172.5,5.83375126]
[1748522280364,0.03720383,172.54,172.46,1.9149]
[1748522280567,0.03720383,172.54,172.45,2.0717]
[1748522280765,2.08940383,172.54,172.45,5.7964]
[1748522281061,5.02430368,172.53,172.43,30.24]
[1748522281256,5.02430368,172.53,172.44,5.7969]
[1748522281475,5.796,172.48,172.47,0.04382769]
[1748522281687,5.796,172.48,172.39,1.9462]
[1748522281688,30.24,172.49,172.39,1.9462]
[1748522282062,5.7967,172.45,172.39,1.9462]
[1748522282259,30.24,172.49,172.39,1.9462]
[1748522282465,30.24,172.49,172.37,30.24]
[1748522282660,0.04171455,172.45,172.41,0.04148182]
[1748522283260,5.7979,172.42,172.31,30.24]
[1748522283457,30.24,172.45,172.31,34.2693]
[1748522283665,6.96100368,172.47,172.31,34.2693]
[1748522283666,30.24,172.44,172.31,34.2693]
[1748522283863,35.26430368,172.44,172.31,34.2693]
[1748522284162,5.7983,172.41,172.37,5.7993]
[1748522284367,5.83962351,172.41,172.37,5.7993]
[1748522284961,0.04132351,172.41,172.38,5.7988]
[1748522285162,0.04132351,172.41,172.31,34.2693]
[1748522285566,5.7984,172.4,172.36,5.7994]
[1748522285760,0.04132351,172.41,172.31,34.2693]
[1748522285960,0.03892244,172.38,172.31,34.2693]
[1748522286161,0.03892244,172.38,172.35,5.7998]
[1748522289169,0.03892244,172.38,172.37,5.7994]
[1748522290363,30.26,172.45,172.41,5.7979]
[1748522290559,30.26,172.45,172.31,34.2693]
[1748522290967,5.7972,172.44,172.4,5.7981]
[1748522291467,5.83720459,172.44,172.4,5.83885792]
[1748522291964,5.7974,172.43,172.4,5.83885792]
[1748522292466,5.7974,172.43,172.4,0.04075792]
[1748522293466,5.83710459,172.44,172.4,5.83905792]
[1748522295273,0.04000459,172.44,172.41,5.798]
[1748522295877,0.04000459,172.44,172.4,0.04075792]
[1748522296468,0.04000459,172.44,172.4,5.97965792]
[1748522296675,0.04000459,172.44,172.43,5.7973]
[1748522301777,30.26,172.51,172.48,5.7955]
[1748522301978,30.26,172.51,172.43,30.18]
[1748522302470,30.26,172.51,172.48,5.7955]
[1748522302973,30.30342972,172.51,172.48,5.83797705]
[1748522303173,36.09812972,172.51,172.48,5.83797705]
[1748522303471,30.30342972,172.51,172.48,0.04247705]
[1748522303974,30.30342972,172.51,172.49,5.7953]
[1748522304176,0.04342972,172.51,172.48,0.04247705]
[1748522304767,0.04342972,172.51,172.49,5.7953]
[1748522305172,0.04342972,172.51,172.48,0.04247705]
[1748522305868,0.04342972,172.51,172.49,5.7953]
[1748522306869,0.04342972,172.51,172.5,5.795]
[1748522307373,0.04342972,172.51,172.49,5.7952]
[1748522308164,0.04342972,172.51,172.5,5.795]
[1748522310178,30.18,172.57,172.54,5.7935]
[1748522310380,30.18,172.57,172.48,5.8913]
[1748522310774,5.793,172.56,172.48,5.8913]
[1748522311270,0.04362345,172.54,172.52,5.7943]
[1748522311970,5.83732345,172.54,172.5,5.83125539]
[1748522312272,0.04362345,172.54,172.5,0.03655539]
[1748522313172,5.7943,172.53,172.5,0.03655539]
[1748522313480,0.04362345,172.54,172.5,0.03655539]
[1748522314166,5.7946,172.52,172.5,0.03655539]
[1748522314371,0.04362345,172.54,172.5,0.03655539]
[1748522314869,5.7946,172.52,172.5,0.03655539]
[1748522315281,0.04362345,172.54,172.5,0.03655539]
[1748522315778,30.18,172.53,172.5,0.03655539]
[1748522315982,5.7946,172.51,172.5,0.03655539]
[1748522320680,5.7959,172.48,172.44,5.797]
[1748522321081,30.18,172.53,172.43,1.9388]
[1748522321273,35.20430368,172.53,172.43,1.9388]
[1748522321485,0.03669556,172.5,172.46,0.04086323]
[1748522321883,5.796,172.47,172.46,0.04086323]
[1748522323581,5.797,172.44,172.4,2.0059]
[1748522323781,30.18,172.49,172.43,5.7973]
[1748522324588,0.03829524,172.48,172.44,0.03911468]
[1748522325282,5.7961,172.47,172.44,0.03911468]
[1748522325481,0.03829524,172.48,172.44,0.03911468]
[1748522325883,5.83409524,172.48,172.45,5.7965]
[1748522326689,0.03829524,172.48,172.46,5.7962]
[1748522326880,0.03829524,172.48,172.44,0.03911468]
[1748522327286,0.03829524,172.48,172.47,5.796]
[1748522327988,0.03829524,172.48,172.46,5.7963]
[1748522328390,0.03829524,172.48,172.44,2.08751468]
[1748522328692,0.03829524,172.48,172.47,5.796]
[1748522330283,0.03829524,172.48,172.46,5.7962]
[1748522330685,0.03829524,172.48,172.44,2.08751468]
[1748522331385,0.03829524,172.48,172.46,5.7961]
[1748522331697,0.03829524,172.48,172.44,2.08751468]
[1748522331885,5.83409524,172.48,172.45,5.7965]
[1748522333784,5.796,172.47,172.44,7.88441468]
[1748522333991,5.796,172.47,172.44,5.83601468]
[1748522334694,5.7964,172.46,172.44,0.03911468]
[1748522336287,5.83429524,172.48,172.44,0.03911468]
[1748522337100,5.83429524,172.48,172.44,5.83591468]
[1748522337285,0.03829524,172.48,172.44,0.03911468]
[1748522337693,0.03829524,172.48,172.45,5.7966]
[1748522338091,0.03829524,172.48,172.44,0.03911468]
[1748522338591,5.83399524,172.48,172.44,0.03911468]
[1748522339010,0.03829524,172.48,172.44,5.83591468]
[1748522339188,5.7962,172.47,172.44,5.83591468]
[1748522339888,30.15829524,172.48,172.44,0.03911468]
[1748522341590,5.7961,172.47,172.44,0.03911468]
[1748522342698,5.7961,172.47,172.44,5.83591468]
[1748522344097,35.95399524,172.48,172.45,5.7966]
[1748522344295,30.15829524,172.48,172.44,0.03911468]
[1748522344694,35.95399524,172.48,172.45,5.7964]
[1748522345201,30.15829524,172.48,172.44,0.03911468]
[1748522345698,35.95419524,172.48,172.45,5.7965]
[1748522346585,35.95419524,172.48,172.44,0.03911468]
[1748522346991,5.796,172.47,172.44,0.03911468]
[1748522347397,30.15829524,172.48,172.44,0.03911468]
[1748522347596,35.95419524,172.48,172.44,0.03911468]
[1748522347792,30.15829524,172.48,172.44,0.03911468]
[1748522347999,5.7967,172.45,172.44,0.03911468]
[1748522348199,30.15829524,172.48,172.44,0.03911468]
[1748522349800,5.7967,172.45,172.44,0.03911468]
[1748522355597,5.7965,172.46,172.44,0.03911468]
[1748522355897,30.15829524,172.48,172.44,0.03911468]
[1748522358103,5.796,172.47,172.45,5.7965]
[1748522359996,35.95409524,172.48,172.45,5.7965]
[1748522360700,35.95409524,172.48,172.46,5.7963]
[1748522361006,35.95409524,172.48,172.44,0.03911468]
[1748522361506,5.7961,172.47,172.44,0.03911468]
[1748522362007,5.7961,172.47,172.44,5.83591468]
[1748522362704,5.7961,172.47,172.45,5.7966]
[1748522362904,35.95399524,172.48,172.45,5.7966]
[1748522364110,5.796,172.47,172.44,5.83601468]
[1748522364709,35.95399524,172.48,172.45,5.7964]
[1748522366298,30.15829524,172.48,172.45,5.7964]
[1748522366497,30.15829524,172.48,172.46,5.7963]
[1748522367303,30.15829524,172.48,172.47,5.796]
[1748522368504,0.03829524,172.48,172.47,5.796]
[1748522369208,5.7945,172.52,172.5,5.7947]
[1748522369209,30.06,172.52,172.5,5.7947]
[1748522369413,30.06,172.52,172.45,2.0978]
[1748522369804,30.06,172.52,172.5,5.7947]
[1748522370310,30.06,172.52,172.45,2.0978]
[1748522370311,35.8545,172.52,172.49,5.83198078]
[1748522372005,30.06,172.52,172.49,5.83198078]
[1748522374806,30.06,172.52,172.5,5.795]
[1748522375206,30.06,172.52,172.49,0.03678078]
[1748522375711,35.8544,172.52,172.49,5.83188078]
[1748522375912,30.06,172.52,172.49,0.03678078]
[1748522376508,5.7948,172.51,172.49,0.03678078]
[1748522378110,35.8544,172.52,172.49,5.83198078]
[1748522378310,35.8544,172.52,172.49,0.03678078]
[1748522378914,5.7947,172.51,172.49,0.03678078]
[1748522380913,5.7947,172.51,172.49,5.83208078]
[1748522381903,5.7947,172.51,172.49,0.03678078]
[1748522382110,5.795,172.5,172.49,0.03678078]
[1748522383310,5.7957,172.48,172.45,5.7964]
[1748522383517,35.8557,172.48,172.45,5.7964]
[1748522384418,35.89720692,172.48,172.45,5.83563544]
[1748522385313,30.10150692,172.48,172.46,5.7963]
[1748522385720,35.89720692,172.48,172.45,5.83573544]
[1748522386718,30.10150692,172.48,172.46,5.7962]
[1748522389322,35.89720692,172.48,172.45,5.83583544]
[1748522392024,30.10150692,172.48,172.46,5.7963]
[1748522395130,35.89720692,172.48,172.46,5.7963]
[1748522395326,35.89720692,172.48,172.45,5.83573544]
[1748522396226,5.7962,172.47,172.45,0.03923544]
[1748522397334,35.89730692,172.48,172.45,5.83583544]
[1748522398836,5.796,172.47,172.45,5.83583544]
[1748522400528,30.10150692,172.48,172.38,30.0]
[1748522400737,30.06,172.48,172.38,30.0]
[1748522401126,5.7967,172.45,172.39,5.7985]
[1748522401534,0.03788466,172.44,172.4,0.02534862]
[1748522401732,0.03788466,172.44,172.4,5.82364862]
[1748522401931,0.03788466,172.44,172.4,0.02534862]
[1748522403036,0.03788466,172.44,172.41,5.7978]
[1748522403933,5.83498466,172.44,172.41,5.7978]
[1748522404133,0.03788466,172.44,172.41,5.7978]
[1748522404741,5.7976,172.43,172.4,5.82354862]
[1748522405940,5.7977,172.42,172.4,5.82354862]
[1748522406148,0.03788466,172.44,172.4,0.02534862]
[1748522406635,5.7978,172.42,172.4,0.02534862]
[1748522407132,5.7975,172.43,172.4,5.82364862]
[1748522407833,5.83498466,172.44,172.4,0.02534862]
[1748522408031,5.83498466,172.44,172.41,5.798]
[1748522408843,0.03788466,172.44,172.42,5.7976]
[1748522409042,0.03788466,172.44,172.4,0.02534862]
[1748522409446,0.03788466,172.44,172.42,5.7976]
[1748522409649,5.83498466,172.44,172.42,5.7976]
[1748522409944,5.83498466,172.44,172.41,5.7979]
[1748522410141,5.7975,172.43,172.4,0.02534862]
[1748522410640,5.7975,172.43,172.4,5.82354862]
[1748522411250,33.2657475,172.44,172.4,0.02534862]
[1748522411456,3.22786284,172.42,172.4,0.02534862]
[1748522411633,5.7981,172.41,172.4,0.02534862]
[1748522412442,9.02596284,172.41,172.4,0.02534862]
[1748522413640,3.22786284,172.41,172.33,3.9433]
[1748522413836,30.0,172.4,172.33,3.9433]
[1748522414046,30.0,172.4,172.29,2.0369]
[1748522414047,5.7997,172.37,172.29,32.0369]
[1748522414237,5.7997,172.37,172.29,2.0369]
[1748522414443,30.0,172.36,172.29,2.0369]
[1748522414743,0.04117802,172.34,172.32,5.8008]
[1748522415251,0.04117802,172.34,172.29,2.0369]
[1748522415747,0.04117802,172.34,172.31,5.8013]
[1748522416252,0.04117802,172.34,172.29,2.0369]
[1748522416446,0.04117802,172.34,172.31,5.8012]
[1748522417050,0.04117802,172.34,172.32,5.8011]
[1748522417351,0.04117802,172.34,172.29,2.0369]
[1748522417550,0.04117802,172.34,172.32,5.8008]
[1748522417756,0.04117802,172.34,172.29,2.0369]
[1748522418955,0.04117802,172.34,172.32,5.8009]
[1748522420054,0.04117802,172.34,172.31,5.8014]
[1748522420260,0.04117802,172.34,172.29,2.0369]
[1748522421859,0.04117802,172.34,172.32,5.8008]
[1748522422055,0.04117802,172.34,172.29,2.0369]
[1748522422452,0.04117802,172.34,172.33,5.8008]
[1748522423460,0.04117802,172.34,172.32,5.801]
[1748522424262,5.84167802,172.34,172.31,5.8013]
[1748522425260,0.04117802,172.34,172.31,5.8013]
[1748522425858,0.04117802,172.34,172.32,5.801]
[1748522429964,0.04117802,172.34,172.31,5.8013]
[1748522430561,0.04117802,172.34,172.3,5.8016]
[1748522430562,5.84167802,172.34,172.3,5.8016]
[1748522430766,0.04117802,172.34,172.29,2.0369]
[1748522431968,5.84177802,172.34,172.29,2.0369]
[1748522432563,5.8008,172.33,172.26,33.9658]
[1748522433067,5.8008,172.33,172.29,5.8019]
[1748522433376,5.8011,172.32,172.26,33.9658]
[1748522433670,5.8011,172.32,172.28,5.8024]
[1748522433865,9.03393412,172.32,172.28,5.8024]
[1748522434469,5.8014,172.31,172.28,5.8024]
[1748522434865,3.23283412,172.32,172.26,3.9658]
[1748522435070,0.04229585,172.31,172.26,3.9658]
[1748522435260,0.04229585,172.31,172.26,1.9587]
[1748522435463,0.04229585,172.31,172.28,5.8023]
[1748522436067,3.23283412,172.3,172.2,29.94]
[1748522436277,0.04305171,172.27,172.21,3.23283412]
[1748522436474,0.04305171,172.27,172.25,5.8032]
[1748522436975,0.04305171,172.27,172.21,3.23283412]
[1748522437273,0.04305171,172.27,172.26,5.8031]
[1748522454573,0.04305171,172.27,172.2,31.9437]
[1748522455177,5.84585171,172.27,172.2,31.9437]
[1748522455678,5.84585171,172.27,172.24,5.8036]
[1748522456789,0.04305171,172.27,172.22,5.8044]
[1748522457172,0.04305171,172.27,172.2,2.0037]
[1748522457383,0.04305171,172.27,172.23,5.8041]
[1748522457875,5.8037,172.25,172.18,4.0541]
[1748522458076,0.0405501,172.23,172.21,5.8047]
[1748522459371,0.0405501,172.23,172.18,4.0541]
[1748522459372,0.0405501,172.23,172.22,5.8045]
[1748522460877,0.0405501,172.23,172.18,4.0541]
[1748522461884,0.0405501,172.23,172.22,5.8045]
[1748522467984,0.0405501,172.23,172.21,5.8047]
[1748522468384,5.8446501,172.23,172.21,5.8047]
[1748522468981,0.0405501,172.23,172.21,5.8047]
[1748522469183,0.0405501,172.23,172.2,5.805]
[1748522469584,0.0405501,172.23,172.21,5.8047]
[1748522469585,5.8448501,172.23,172.21,5.8047]
[1748522469782,0.0405501,172.23,172.18,4.0541]
[1748522470983,0.0405501,172.23,172.2,5.8049]
[1748522472184,0.0405501,172.23,172.18,4.0541]
[1748522473485,5.8046,172.22,172.19,5.8055]
[1748522474181,9.08132642,172.23,172.2,5.8051]
[1748522474986,9.08132642,172.23,172.15,3.23647632]
[1748522474987,0.0405501,172.23,172.15,3.23647632]
[1748522475289,0.0405501,172.23,172.16,1.986]
[1748522475591,5.8448501,172.23,172.16,1.986]
[1748522476391,0.0405501,172.23,172.21,5.8048]
[1748522476786,0.0405501,172.23,172.16,1.986]
[1748522477094,5.8448501,172.23,172.2,5.8049]
[1748522477693,5.8046,172.22,172.2,5.8049]
[1748522478295,3.23647632,172.22,172.16,1.986]
[1748522478600,0.0405501,172.23,172.16,1.986]
[1748522478786,0.0405501,172.23,172.17,5.8059]
[1748522478787,5.8054,172.2,172.17,5.8059]
[1748522479592,5.8049,172.21,172.18,5.8057]
[1748522479791,3.23647632,172.22,172.18,5.8057]
[1748522479992,0.0405501,172.23,172.18,5.8057]
[1748522481187,0.0405501,172.23,172.11,29.9]
[1748522481394,0.04457864,172.19,172.11,29.9]
[1748522482285,5.8062,172.17,172.14,5.8069]
[1748522483391,0.04457864,172.19,172.15,5.8068]
[1748522483595,5.8059,172.18,172.15,5.8068]
[1748522483892,5.8059,172.18,172.16,5.8065]
[1748522484089,5.8059,172.18,172.11,29.9]
[1748522484090,0.04457864,172.19,172.11,29.9]
[1748522484794,5.85007864,172.19,172.11,29.9]
[1748522485902,5.8059,172.18,172.11,29.9]
[1748522486092,0.04457864,172.19,172.11,29.9]
[1748522487101,5.8063,172.17,172.14,5.8072]
[1748522487302,0.04457864,172.19,172.11,29.9]
[1748522487697,5.8064,172.17,172.14,5.8071]
[1748522487894,0.04457864,172.19,172.11,29.9]
[1748522488101,5.8067,172.16,172.13,5.8074]
[1748522488299,0.04457864,172.19,172.1,3.8703]
[1748522488597,0.03655279,172.16,172.1,3.8703]
[1748522488797,5.807,172.15,172.13,5.8074]
[1748522489102,0.03655279,172.16,172.13,5.8074]
[1748522489294,5.84325279,172.16,172.13,5.8074]
[1748522489494,0.03655279,172.16,172.13,5.8074]
[1748522489697,0.03655279,172.16,172.12,5.8077]
[1748522489894,5.807,172.15,172.12,5.8077]
[1748522490097,0.03655279,172.16,172.12,5.8078]
[1748522490601,0.03655279,172.16,172.1,3.8703]
[1748522490799,29.89655279,172.16,172.11,5.8079]
[1748522491103,29.89655279,172.16,172.1,3.8703]
[1748522491300,29.89655279,172.16,172.1,9.6786]
[1748522491496,29.89655279,172.16,172.1,5.8083]
[1748522492207,29.89655279,172.16,172.09,5.8087]
[1748522492401,5.05772704,172.1,171.98,29.86]
[1748522492599,0.04297894,172.06,172.01,2.0908]
[1748522492801,0.03755449,172.05,172.04,5.8103]
[1748522494300,0.03755449,172.05,171.95,29.86]
[1748522494500,5.05772704,172.14,172.02,2.0118]
[1748522494702,0.04221357,172.1,172.09,5.8089]
[1748522494897,29.86,172.17,172.08,0.04136626]
[1748522495105,29.86,172.17,172.05,29.86]
[1748522495802,5.8067,172.16,172.05,29.86]
[1748522496001,0.04280686,172.12,172.09,0.04136626]
[1748522496202,5.8067,172.16,172.09,0.04136626]
[1748522496804,5.807,172.15,172.12,5.8076]
[1748522497204,5.85032661,172.15,172.12,0.04276953]
[1748522497898,0.04332661,172.15,172.12,0.04276953]
[1748522498302,0.04332661,172.15,172.13,5.8075]
[1748522498809,0.04332661,172.15,172.14,5.8072]
[1748522499811,0.04332661,172.15,172.13,5.8074]
[1748522500213,0.04332661,172.15,172.12,0.04276953]
[1748522500712,0.04332661,172.15,172.14,5.8072]
[1748522501108,0.04332661,172.15,172.12,0.04276953]
[1748522501408,0.04332661,172.15,172.14,5.8072]
[1748522501610,0.04332661,172.15,172.12,0.04276953]
[1748522501810,0.04332661,172.15,172.14,5.8072]
[1748522502012,0.04332661,172.15,172.12,0.04276953]
[1748522502913,0.04332661,172.15,172.13,5.8074]
[1748522504213,5.85012661,172.15,172.13,5.8074]
[1748522504409,5.85012661,172.15,172.12,5.85046953]
[1748522504715,5.85012661,172.15,172.12,0.04276953]
[1748522504902,0.04332661,172.15,172.12,0.04276953]
[1748522506012,5.85032661,172.15,172.12,0.04276953]
[1748522506604,0.04332661,172.15,172.13,5.8075]
[1748522507509,5.85022661,172.15,172.13,5.8075]
[1748522507814,5.85022661,172.15,172.12,5.85046953]
[1748522509617,5.85022661,172.15,172.13,5.8074]
[1748522510207,5.85022661,172.15,172.12,5.85036953]
[1748522510410,5.8074,172.14,172.12,0.04276953]
[1748522510817,5.85032661,172.15,172.12,5.85056953]
[1748522511310,5.8073,172.14,172.12,0.04276953]
[1748522512013,5.8073,172.14,172.12,5.85056953]
[1748522512614,5.85022661,172.15,172.12,5.85056953]
[1748522513924,0.04332661,172.15,172.12,0.04276953]
[1748522514917,0.04332661,172.15,172.13,5.8072]
[1748522515118,0.04332661,172.15,172.12,0.04276953]
[1748522515815,0.04332661,172.15,172.13,5.8072]
[1748522516821,5.85022661,172.15,172.13,5.8072]
[1748522517224,0.04332661,172.15,172.12,0.04276953]
[1748522517423,5.85022661,172.15,172.12,0.04276953]
[1748522517722,0.04332661,172.15,172.12,0.04276953]
[1748522518519,0.04332661,172.15,172.13,5.8073]
[1748522519224,5.8074,172.14,172.12,0.04276953]
[1748522520318,0.04332661,172.15,172.12,0.04276953]
[1748522520720,5.8075,172.13,172.12,0.04276953]
[1748522521226,0.04332661,172.15,172.12,0.04276953]
[1748522521424,5.8073,172.14,172.12,5.85056953]
[1748522522127,5.8075,172.13,172.12,0.04276953]
[1748522524525,29.84,172.13,172.04,1.9202]
[1748522525242,29.84,172.13,171.88,17.43]
[1748522525243,5.07259485,172.05,171.88,17.43]
[1748522525430,5.8111,172.03,171.95,0.03745881]
[1748522525739,5.8111,172.03,171.86,1.9769]
[1748522525740,0.03953381,171.98,171.84,1.0119515]
[1748522525937,37.62,172.02,171.86,5.8164]
[1748522526133,37.62,172.02,171.81,21.338]
[1748522526331,37.62,172.02,171.81,3.908]
[1748522526528,4.1191,172.03,171.81,3.908]
[1748522526732,0.04181855,171.93,171.81,3.908]
[1748522526927,4.1191,172.03,171.81,9.7261]
[1748522527136,0.04206295,171.89,171.81,9.7261]
[1748522527332,4.1191,172.03,171.81,3.908]
[1748522527530,0.03713565,171.87,171.81,3.908]
[1748522527739,5.07459565,171.94,171.81,3.908]
[1748522527931,0.04173116,171.86,171.81,1.9311]
[1748522528128,5.8154,171.9,171.81,1.9311]
[1748522528326,0.04146037,171.85,171.81,1.9311]
[1748522529243,2.0979,171.93,171.81,1.9311]
[1748522529529,1.9583,171.99,171.81,1.9311]
[1748522529926,5.8165,171.87,171.81,1.9311]
[1748522530225,1.9583,171.99,171.82,0.04193276]
[1748522530428,0.04129062,171.92,171.81,1.9311]
[1748522530640,0.03877855,171.88,171.85,0.04147017]
[1748522530841,0.03877855,171.88,171.63,502.08]
[1748522531027,502.08,171.97,171.73,2.048]
[1748522531229,502.08,171.97,171.74,2.0997]
[1748522531834,0.03714005,171.87,171.74,2.0997]
[1748522532029,0.03884867,171.82,171.74,2.0997]
[1748522532233,0.04234903,171.8,171.55,502.08]
[1748522532535,502.08,171.97,171.69,5.08238467]
[1748522532732,1.9791,171.96,171.7,4.0079]
[1748522533268,5.8151,171.91,171.7,4.0079]
[1748522533445,0.04197166,171.82,171.79,0.04125775]
[1748522533741,1.9583,171.99,171.79,5.08238467]
[1748522533932,1.9583,171.99,171.8,4.0079]
[1748522534332,1.9583,171.99,171.87,5.816]
[1748522534536,0.04018758,171.95,171.91,0.03687521]
[1748522534839,0.03977783,171.95,171.91,0.03687521]
[1748522538237,0.03977783,171.95,171.92,5.8144]
[1748522538838,0.03977783,171.95,171.91,0.03687521]
[1748522541032,0.03977783,171.95,171.92,5.8144]
[1748522541440,0.03977783,171.95,171.91,0.03687521]
[1748522541839,0.03977783,171.95,171.93,5.814]
[1748522542039,0.03977783,171.95,171.91,0.03687521]
[1748522542432,0.03977783,171.95,171.91,5.85137521]
[1748522542634,0.03977783,171.95,171.91,0.03687521]
[1748522543064,17.60678762,172.88,171.91,0.03687521]
[1748522543065,8.35891,172.04,171.91,0.03687521]
[1748522543235,8.35891,172.04,171.9,5.06766445]
[1748522543542,5.8111,172.02,171.96,5.813]
[1748522543742,8.35891,172.04,171.91,3.9335]
[1748522544039,0.03990935,171.99,171.96,0.04165509]
[1748522545243,0.03990935,171.99,171.91,3.9335]
[1748522545244,0.03990935,171.99,171.91,1.9198]
[1748522545843,0.03990935,171.99,171.86,1.9663]
[1748522546141,0.0435598,171.94,171.91,0.03867202]
[1748522547738,5.8145,171.93,171.91,0.03867202]
[1748522548137,0.0435598,171.94,171.91,0.03867202]
[1748522552044,5.8142,171.93,171.91,0.03867202]
[1748522552238,0.0435598,171.94,171.91,0.03867202]
[1748522552838,5.8575598,171.94,171.91,0.03867202]
[1748522553545,0.0435598,171.94,171.91,0.03867202]
[1748522553748,0.0435598,171.94,171.82,2.0807]
[1748522554049,5.8147,171.92,171.85,5.8168]
[1748522554644,0.04433352,171.9,171.87,0.04410088]
[1748522556464,5.8167,171.86,171.79,5.8187]
[1748522557148,6.1325,171.91,171.75,6.0547]
[1748522557538,0.04140386,171.85,171.75,6.0547]
[1748522557745,0.04140386,171.85,171.75,11.12236445]
[1748522558045,0.04140386,171.85,171.75,6.0547]
[1748522558267,2.0692,171.99,171.75,6.0547]
[1748522558465,4.50270613,171.99,171.75,6.0547]
[1748522558669,4.50270613,171.99,171.79,5.8188]
[1748522558852,2.0692,171.99,171.75,6.0547]
[1748522559358,0.04326921,171.89,171.85,0.03867078]
[1748522559654,0.04232714,171.89,171.85,0.03800684]
[1748522561652,0.04232714,171.89,171.85,5.85480684]
[1748522561865,0.04232714,171.89,171.85,0.03800684]
[1748522564647,5.10999159,171.89,171.85,0.03800684]
[1748522565055,5.8158,171.88,171.85,0.03800684]
[1748522565350,5.10999159,171.89,171.85,0.03800684]
[1748522565551,5.85812714,171.89,171.85,0.03800684]
[1748522565754,0.04232714,171.89,171.85,0.03800684]
[1748522566048,5.06766445,171.87,171.75,6.0547]
[1748522566364,2.43582702,171.9,171.75,6.0547]
[1748522566652,5.8168,171.86,171.75,6.0547]
[1748522566849,2.43582702,171.9,171.75,6.0547]
[1748522567055,0.04291554,171.82,171.75,6.0547]
[1748522567962,0.04291554,171.82,171.75,2.0577]
[1748522568180,0.04291554,171.82,171.68,3.8208]
[1748522568466,0.04138104,171.77,171.68,5.9059]
[1748522568654,0.04474378,171.74,171.68,5.9059]
[1748522568867,0.04281019,171.73,171.72,5.8213]
[1748522569055,0.04357681,171.74,171.68,5.9059]
[1748522569250,0.03688988,171.73,171.68,5.9059]
[1748522569449,502.62,171.9,171.73,5.8209]
[1748522569450,5.8179,171.82,171.73,5.8209]
[1748522569659,0.04062248,171.79,171.68,5.9059]
[1748522569853,0.037331,171.75,171.68,5.9059]
[1748522570051,5.8179,171.82,171.73,5.8209]
[1748522570346,0.04402566,171.79,171.73,5.8209]
[1748522570855,0.04402566,171.79,171.74,5.8206]
[1748522571057,0.0407726,171.78,171.68,5.9059]
[1748522572951,0.0407726,171.78,171.73,5.8208]
[1748522573150,0.0407726,171.78,171.68,5.9059]